[Event "Early-Titled-Tuesday-Blitz-January-30-2024"]
[Site "Chess.com"]
[Date "2024.01.30"]
[Round "4"]
[White "lucliasco"]
[Black "FairChess_on_YouTube"]
[Result "0-1"]
[WhiteElo "2882"]
[BlackElo "3098"]
[TimeControl "180+1"]
[EndTime "8:40:12 PST"]
[Termination "FairChess_on_YouTube won by resignation"]

1. e4 {[%clk 0:02:56.2]} 1... e5 {[%clk 0:02:55.6]} 2. Nf3 {[%clk 0:02:56.1]}
2... Nc6 {[%clk 0:02:53.6]} 3. Nc3 {[%clk 0:02:57]} 3... Nf6 {[%clk 0:02:53]} 4.
d4 {[%clk 0:02:56.9]} 4... exd4 {[%clk 0:02:52.1]} 5. Nxd4 {[%clk 0:02:57.8]}
5... Bb4 {[%clk 0:02:46.8]} 6. Nxc6 {[%clk 0:02:57.8]} 6... bxc6 {[%clk
0:02:46.4]} 7. Bd3 {[%clk 0:02:58.4]} 7... O-O {[%clk 0:02:46.4]} 8. O-O {[%clk
0:02:58.1]} 8... d5 {[%clk 0:02:47]} 9. Bd2 {[%clk 0:02:58.5]} 9... Rb8 {[%clk
0:02:45.1]} 10. a3 {[%clk 0:02:55.7]} 10... Bd6 {[%clk 0:02:44.1]} 11. b4 {[%clk
0:02:54.8]} 11... Re8 {[%clk 0:02:41.9]} 12. h3 {[%clk 0:02:46.2]} 12... dxe4
{[%clk 0:02:30.2]} 13. Bc4 {[%clk 0:02:43.9]} 13... Be6 {[%clk 0:02:29]} 14. Qe2
{[%clk 0:02:40.8]} 14... Bxc4 {[%clk 0:02:05.2]} 15. Qxc4 {[%clk 0:02:39.9]}
15... Bh2+ {[%clk 0:02:05.8]} 16. Kxh2 {[%clk 0:02:39.4]} 16... Qxd2 {[%clk
0:02:06.7]} 17. Ne2 {[%clk 0:02:30]} 17... Qd5 {[%clk 0:01:57.4]} 18. Qc3 {[%clk
0:02:25.2]} 18... e3 {[%clk 0:01:40]} 19. fxe3 {[%clk 0:02:21.5]} 19... Qd6+
{[%clk 0:01:36.4]} 20. Kg1 {[%clk 0:02:18.3]} 20... Nd5 {[%clk 0:01:36.1]} 21.
Qd4 {[%clk 0:02:05.5]} 21... Nxe3 {[%clk 0:01:34.2]} 22. Qxd6 {[%clk 0:02:05.6]}
22... cxd6 {[%clk 0:01:35.1]} 23. Rfc1 {[%clk 0:02:05.9]} 23... Re4 {[%clk
0:01:30.6]} 24. Ng3 {[%clk 0:02:00]} 24... Rd4 {[%clk 0:01:23.4]} 25. Nf1 {[%clk
0:01:52]} 25... Nc4 {[%clk 0:01:20.6]} 26. Rd1 {[%clk 0:01:50.2]} 26... Rxd1
{[%clk 0:01:18.4]} 27. Rxd1 {[%clk 0:01:51.1]} 27... Nxa3 {[%clk 0:01:17.8]} 28.
Rxd6 {[%clk 0:01:50.8]} 28... Nxc2 {[%clk 0:01:18]} 29. Rxc6 {[%clk 0:01:47.9]}
29... Nxb4 {[%clk 0:01:17.9]} 30. Rc7 {[%clk 0:01:48.7]} 30... Ra8 {[%clk
0:01:15.3]} 31. Rb7 {[%clk 0:01:48.3]} 31... a5 {[%clk 0:01:14.6]} 32. Nd2
{[%clk 0:01:47.8]} 32... h6 {[%clk 0:01:06.3]} 33. Nc4 {[%clk 0:01:47.6]} 33...
Nc6 {[%clk 0:01:05.6]} 34. Rc7 {[%clk 0:01:44.3]} 34... Nd4 {[%clk 0:01:04.6]}
35. Rd7 {[%clk 0:01:41.3]} 35... Nb3 {[%clk 0:01:01.6]} 36. Rb7 {[%clk
0:01:36.4]} 36... a4 {[%clk 0:00:47.8]} 37. Nb6 {[%clk 0:01:34.4]} 37... Nc5
{[%clk 0:00:46.4]} 38. Rc7 {[%clk 0:01:28.3]} 38... Ra6 {[%clk 0:00:44.6]} 39.
Nd5 {[%clk 0:01:21.1]} 39... a3 {[%clk 0:00:37.9]} 40. Nb4 {[%clk 0:01:14.8]}
40... Rb6 {[%clk 0:00:36.3]} 41. Na2 {[%clk 0:01:05.9]} 41... Rb2 {[%clk
0:00:35.7]} 42. Nc3 {[%clk 0:01:04.9]} 42... Ne4 {[%clk 0:00:27.2]} 0-1

[Event "Early-Titled-Tuesday-Blitz-January-30-2024"]
[Site "Chess.com"]
[Date "2024.01.30"]
[Round "4"]
[White "mac0504"]
[Black "Shushik"]
[Result "1-0"]
[WhiteElo "2732"]
[BlackElo "2528"]
[TimeControl "180+1"]
[EndTime "8:40:12 PST"]
[Termination "mac0504 won by resignation"]

1. c4 {[%clk 0:03:00.9]} 1... Nf6 {[%clk 0:02:58.9]} 2. Nc3 {[%clk 0:03:01.1]}
2... e6 {[%clk 0:02:57.5]} 3. e4 {[%clk 0:03:01.5]} 3... d5 {[%clk 0:02:58]} 4.
e5 {[%clk 0:03:02.2]} 4... d4 {[%clk 0:02:57.6]} 5. exf6 {[%clk 0:03:02.8]} 5...
dxc3 {[%clk 0:02:57.9]} 6. bxc3 {[%clk 0:03:03.7]} 6... Qxf6 {[%clk 0:02:57.8]}
7. d4 {[%clk 0:03:04.6]} 7... e5 {[%clk 0:02:57]} 8. Nf3 {[%clk 0:03:05.3]} 8...
Nc6 {[%clk 0:02:55.1]} 9. Bd3 {[%clk 0:02:41.3]} 9... Bg4 {[%clk 0:02:32]} 10.
Be4 {[%clk 0:02:41]} 10... O-O-O {[%clk 0:02:20.7]} 11. Bg5 {[%clk 0:02:03.9]}
11... Qxg5 {[%clk 0:01:35.9]} 12. Nxg5 {[%clk 0:02:03.7]} 12... Bxd1 {[%clk
0:01:36.8]} 13. Rxd1 {[%clk 0:01:53.8]} 13... Re8 {[%clk 0:01:35.8]} 14. d5
{[%clk 0:01:33.7]} 14... Nd8 {[%clk 0:01:34.4]} 15. h4 {[%clk 0:01:07.6]} 15...
g6 {[%clk 0:01:26]} 16. h5 {[%clk 0:01:02.3]} 16... Bc5 {[%clk 0:00:56.4]} 17.
Ke2 {[%clk 0:00:58.8]} 17... f5 {[%clk 0:00:55.2]} 18. Bc2 {[%clk 0:00:59.3]}
18... e4 {[%clk 0:00:51]} 19. Ba4 {[%clk 0:00:59.5]} 19... Ref8 {[%clk
0:00:43.1]} 20. Ne6 {[%clk 0:00:56.4]} 20... Nxe6 {[%clk 0:00:38.2]} 21. dxe6
{[%clk 0:00:57.3]} 21... f4 {[%clk 0:00:28.7]} 22. Bd7+ {[%clk 0:00:37.4]} 22...
Kb8 {[%clk 0:00:28]} 23. Rd5 {[%clk 0:00:38.2]} 23... b6 {[%clk 0:00:19.5]} 24.
Rxc5 {[%clk 0:00:36.8]} 24... bxc5 {[%clk 0:00:20.4]} 25. hxg6 {[%clk
0:00:31.7]} 25... hxg6 {[%clk 0:00:17]} 26. Rxh8 {[%clk 0:00:30.5]} 26... Rxh8
{[%clk 0:00:16.6]} 27. e7 {[%clk 0:00:31.3]} 27... Kb7 {[%clk 0:00:16]} 28. e8=Q
{[%clk 0:00:31.4]} 28... Rxe8 {[%clk 0:00:16.4]} 29. Bxe8 {[%clk 0:00:32.3]}
29... g5 {[%clk 0:00:15.3]} 30. Bg6 {[%clk 0:00:32.7]} 1-0

[Event "Early-Titled-Tuesday-Blitz-January-30-2024"]
[Site "Chess.com"]
[Date "2024.01.30"]
[Round "4"]
[White "Bauman_Guy"]
[Black "KhazhatulyAlikhan"]
[Result "1-0"]
[WhiteElo "2875"]
[BlackElo "2404"]
[TimeControl "180+1"]
[EndTime "8:40:19 PST"]
[Termination "Bauman_Guy won on time"]

1. e4 {[%clk 0:03:00.9]} 1... c5 {[%clk 0:02:59.1]} 2. Nf3 {[%clk 0:03:01.2]}
2... e6 {[%clk 0:02:58.3]} 3. d4 {[%clk 0:03:01.1]} 3... cxd4 {[%clk 0:02:59.2]}
4. Nxd4 {[%clk 0:03:01.8]} 4... a6 {[%clk 0:02:59.3]} 5. Bd3 {[%clk 0:03:01.6]}
5... Qc7 {[%clk 0:02:59.2]} 6. O-O {[%clk 0:03:01.7]} 6... Nf6 {[%clk
0:02:59.7]} 7. Qe2 {[%clk 0:03:01.5]} 7... d6 {[%clk 0:02:54.7]} 8. c4 {[%clk
0:03:01.4]} 8... Be7 {[%clk 0:02:53.2]} 9. Nc3 {[%clk 0:03:01.4]} 9... O-O
{[%clk 0:02:53.9]} 10. b3 {[%clk 0:03:01]} 10... Nc6 {[%clk 0:02:52.3]} 11. Nxc6
{[%clk 0:02:59.8]} 11... Qxc6 {[%clk 0:02:37.6]} 12. Bb2 {[%clk 0:03:00.7]}
12... Bd7 {[%clk 0:02:38.1]} 13. Kh1 {[%clk 0:02:38.5]} 13... Rfe8 {[%clk
0:02:31]} 14. f4 {[%clk 0:02:38.1]} 14... e5 {[%clk 0:02:05.1]} 15. Nd5 {[%clk
0:02:34.9]} 15... Bd8 {[%clk 0:01:38.9]} 16. Nxf6+ {[%clk 0:02:31.7]} 16... Bxf6
{[%clk 0:01:38.7]} 17. Rad1 {[%clk 0:02:27.8]} 17... Rad8 {[%clk 0:01:36.9]} 18.
Qf3 {[%clk 0:02:19]} 18... Qc8 {[%clk 0:01:22.6]} 19. Rd2 {[%clk 0:02:17.4]}
19... Bg4 {[%clk 0:01:19.4]} 20. Qf2 {[%clk 0:02:16.8]} 20... Bd7 {[%clk
0:01:14.6]} 21. Rfd1 {[%clk 0:02:14.5]} 21... Bc6 {[%clk 0:00:59.6]} 22. Bc2
{[%clk 0:02:13.4]} 22... Qe6 {[%clk 0:00:36.3]} 23. f5 {[%clk 0:02:12.3]} 23...
Qc8 {[%clk 0:00:28.1]} 24. Rxd6 {[%clk 0:02:10.5]} 24... Rxd6 {[%clk 0:00:27]}
25. Rxd6 {[%clk 0:02:11.4]} 25... Rd8 {[%clk 0:00:27.9]} 26. Qd2 {[%clk
0:02:09]} 26... Rxd6 {[%clk 0:00:13.5]} 27. Qxd6 {[%clk 0:02:09.9]} 27... Qe8
{[%clk 0:00:14.2]} 28. Kg1 {[%clk 0:02:03.1]} 28... h6 {[%clk 0:00:10.7]} 29. a4
{[%clk 0:01:59.1]} 29... Kh7 {[%clk 0:00:08.3]} 30. a5 {[%clk 0:01:58.5]} 30...
Kg8 {[%clk 0:00:07.8]} 31. Bc3 {[%clk 0:01:58.6]} 31... Kh7 {[%clk 0:00:06.5]}
32. g3 {[%clk 0:01:58.8]} 32... Kg8 {[%clk 0:00:06.5]} 33. Kf2 {[%clk
0:01:59.2]} 33... Kh7 {[%clk 0:00:06.2]} 34. b4 {[%clk 0:01:59.3]} 34... Kg8
{[%clk 0:00:06]} 35. Bd3 {[%clk 0:01:59.6]} 35... Kh7 {[%clk 0:00:05.7]} 36. Ke2
{[%clk 0:02:00.1]} 36... Kg8 {[%clk 0:00:05.9]} 37. Qc5 {[%clk 0:02:00.3]} 37...
Kh7 {[%clk 0:00:04.7]} 38. b5 {[%clk 0:02:00.5]} 38... axb5 {[%clk 0:00:04.5]}
39. cxb5 {[%clk 0:02:01.1]} 39... Bd7 {[%clk 0:00:05.4]} 40. a6 {[%clk
0:02:01.2]} 40... bxa6 {[%clk 0:00:03.9]} 41. bxa6 {[%clk 0:02:02.1]} 41... Qa8
{[%clk 0:00:02.5]} 42. Bxe5 {[%clk 0:02:01.1]} 42... Bxe5 {[%clk 0:00:01.3]} 43.
Qxe5 {[%clk 0:02:02]} 43... Bc8 {[%clk 0:00:02.2]} 44. Qd6 {[%clk 0:02:01.8]}
44... Qa7 {[%clk 0:00:01.9]} 45. Qc6 {[%clk 0:01:36]} 45... Qg1 {[%clk
0:00:02.4]} 46. Qxc8 {[%clk 0:01:36]} 46... Qxh2+ {[%clk 0:00:03.1]} 47. Kd1
{[%clk 0:01:36.6]} 47... Qg1+ {[%clk 0:00:01.9]} 48. Kc2 {[%clk 0:01:36.7]}
48... Qf2+ {[%clk 0:00:01.6]} 49. Kb3 {[%clk 0:01:36.8]} 49... Qxg3 {[%clk
0:00:01.5]} 50. Qd7 {[%clk 0:01:35.1]} 50... Qb8+ {[%clk 0:00:01.6]} 51. Qb7
{[%clk 0:01:34.5]} 1-0

[Event "Early-Titled-Tuesday-Blitz-January-30-2024"]
[Site "Chess.com"]
[Date "2024.01.30"]
[Round "4"]
[White "RobertoJBM"]
[Black "Zhigalko_Sergei"]
[Result "1-0"]
[WhiteElo "2837"]
[BlackElo "2958"]
[TimeControl "180+1"]
[EndTime "8:40:21 PST"]
[Termination "RobertoJBM won on time"]

1. d4 {[%clk 0:03:00.9]} 1... Nf6 {[%clk 0:03:00.1]} 2. Nf3 {[%clk 0:03:00.9]}
2... e6 {[%clk 0:03:00.4]} 3. e3 {[%clk 0:03:00.9]} 3... b6 {[%clk 0:03:00.7]}
4. Bd3 {[%clk 0:03:00.7]} 4... Bb7 {[%clk 0:03:00]} 5. O-O {[%clk 0:03:01.2]}
5... d5 {[%clk 0:03:00.2]} 6. Qe2 {[%clk 0:03:00.8]} 6... Bd6 {[%clk 0:02:59.4]}
7. Nbd2 {[%clk 0:03:00.6]} 7... Ne4 {[%clk 0:02:59.3]} 8. Ne5 {[%clk 0:02:59]}
8... O-O {[%clk 0:02:53.5]} 9. f3 {[%clk 0:02:57.4]} 9... Nxd2 {[%clk
0:02:50.1]} 10. Bxd2 {[%clk 0:02:58.3]} 10... f6 {[%clk 0:02:50]} 11. Ng4 {[%clk
0:02:57.8]} 11... c5 {[%clk 0:02:36.7]} 12. c4 {[%clk 0:02:53.6]} 12... f5
{[%clk 0:02:30.6]} 13. Ne5 {[%clk 0:02:51.5]} 13... Bxe5 {[%clk 0:02:11.7]} 14.
dxe5 {[%clk 0:02:50.7]} 14... Nc6 {[%clk 0:02:11]} 15. cxd5 {[%clk 0:02:40.6]}
15... Qxd5 {[%clk 0:02:03.2]} 16. Bc3 {[%clk 0:02:27.5]} 16... Nxe5 {[%clk
0:01:53.7]} 17. Bb5 {[%clk 0:02:19.9]} 17... c4 {[%clk 0:01:45.7]} 18. Bxe5
{[%clk 0:02:09.7]} 18... Qxb5 {[%clk 0:01:43.8]} 19. Bc3 {[%clk 0:02:07.4]}
19... Rad8 {[%clk 0:01:32.2]} 20. Qf2 {[%clk 0:02:06.7]} 20... Rd3 {[%clk
0:01:24.7]} 21. Qg3 {[%clk 0:02:04.3]} 21... Qd7 {[%clk 0:01:23.5]} 22. Rae1
{[%clk 0:02:02.9]} 22... b5 {[%clk 0:01:16]} 23. a3 {[%clk 0:02:02.5]} 23... a6
{[%clk 0:01:11.2]} 24. h4 {[%clk 0:02:01.6]} 24... h6 {[%clk 0:01:09.7]} 25. Qe5
{[%clk 0:01:59.4]} 25... Rf7 {[%clk 0:01:07.3]} 26. h5 {[%clk 0:01:52.3]} 26...
Qd6 {[%clk 0:00:34.4]} 27. Qxd6 {[%clk 0:01:44.7]} 27... Rxd6 {[%clk 0:00:35.3]}
28. Kf2 {[%clk 0:01:44.9]} 28... Rd3 {[%clk 0:00:33.4]} 29. Kg3 {[%clk
0:01:44.4]} 29... Rfd7 {[%clk 0:00:29.5]} 30. Rh1 {[%clk 0:01:43.5]} 30... Kf7
{[%clk 0:00:25]} 31. Rh4 {[%clk 0:01:43.4]} 31... R7d5 {[%clk 0:00:23.7]} 32.
Rd4 {[%clk 0:01:41.9]} 32... R5xd4 {[%clk 0:00:16.7]} 33. Bxd4 {[%clk
0:01:34.7]} 33... Rd2 {[%clk 0:00:16.8]} 34. Bc3 {[%clk 0:01:32.2]} 34... Rc2
{[%clk 0:00:16.1]} 35. Rd1 {[%clk 0:01:30.7]} 35... Bd5 {[%clk 0:00:16.3]} 36.
e4 {[%clk 0:01:22.8]} 36... fxe4 {[%clk 0:00:14.9]} 37. fxe4 {[%clk 0:01:23.7]}
37... Bxe4 {[%clk 0:00:14.7]} 38. Rd7+ {[%clk 0:01:24.1]} 38... Ke8 {[%clk
0:00:12.1]} 39. Rxg7 {[%clk 0:01:23.8]} 39... Rxg2+ {[%clk 0:00:11.2]} 40. Kf4
{[%clk 0:01:24.3]} 40... Re2 {[%clk 0:00:06.8]} 41. Ke5 {[%clk 0:01:12.7]} 41...
Bf3+ {[%clk 0:00:03.3]} 42. Kd6 {[%clk 0:01:11.3]} 1-0

[Event "Early-Titled-Tuesday-Blitz-January-30-2024"]
[Site "Chess.com"]
[Date "2024.01.30"]
[Round "4"]
[White "Matibar"]
[Black "shimastream"]
[Result "0-1"]
[WhiteElo "2797"]
[BlackElo "3027"]
[TimeControl "180+1"]
[EndTime "8:40:22 PST"]
[Termination "shimastream won by resignation"]

1. e4 {[%clk 0:03:00.9]} 1... d5 {[%clk 0:02:56.6]} 2. exd5 {[%clk 0:03:00.8]}
2... Qxd5 {[%clk 0:02:57.5]} 3. Nc3 {[%clk 0:03:00.8]} 3... Qe5+ {[%clk
0:02:57]} 4. Be2 {[%clk 0:02:56.4]} 4... Bg4 {[%clk 0:02:57]} 5. d4 {[%clk
0:02:56.3]} 5... Bxe2 {[%clk 0:02:57.2]} 6. Ngxe2 {[%clk 0:02:54.2]} 6... Qa5
{[%clk 0:02:57]} 7. O-O {[%clk 0:02:53.1]} 7... Nf6 {[%clk 0:02:56.6]} 8. b4
{[%clk 0:02:47.6]} 8... Qh5 {[%clk 0:02:55.9]} 9. Bf4 {[%clk 0:02:42.1]} 9... e6
{[%clk 0:02:55.3]} 10. Bxc7 {[%clk 0:02:29.2]} 10... Bxb4 {[%clk 0:02:53.7]} 11.
Rb1 {[%clk 0:02:29.3]} 11... Nc6 {[%clk 0:02:52]} 12. a3 {[%clk 0:01:59.3]}
12... Bxc3 {[%clk 0:02:51.9]} 13. Nxc3 {[%clk 0:01:58.9]} 13... Qxd1 {[%clk
0:02:52.6]} 14. Rfxd1 {[%clk 0:01:58.6]} 14... b6 {[%clk 0:02:53.3]} 15. Nb5
{[%clk 0:01:42.8]} 15... O-O {[%clk 0:02:22.1]} 16. c4 {[%clk 0:01:38.6]} 16...
Na5 {[%clk 0:02:22.1]} 17. d5 {[%clk 0:01:07.4]} 17... Nxc4 {[%clk 0:02:19.4]}
18. d6 {[%clk 0:01:07.8]} 18... Nd7 {[%clk 0:02:18.5]} 19. a4 {[%clk 0:01:07.3]}
19... h5 {[%clk 0:02:10.5]} 20. Rbc1 {[%clk 0:01:06.3]} 20... Na5 {[%clk
0:02:10.2]} 21. Nd4 {[%clk 0:00:56.4]} 21... Rfe8 {[%clk 0:02:06.3]} 22. f3
{[%clk 0:00:51.7]} 22... f6 {[%clk 0:02:06.1]} 23. Kf2 {[%clk 0:00:51.2]} 23...
Kf7 {[%clk 0:02:06.4]} 24. Nb5 {[%clk 0:00:39.7]} 24... e5 {[%clk 0:01:56.6]}
25. Nc3 {[%clk 0:00:37.4]} 25... h4 {[%clk 0:01:49.7]} 26. Nd5 {[%clk
0:00:36.3]} 26... Rac8 {[%clk 0:01:47.3]} 27. Ne7 {[%clk 0:00:31.5]} 27... Ra8
{[%clk 0:01:46.9]} 28. Nd5 {[%clk 0:00:31.3]} 28... g5 {[%clk 0:01:44.8]} 29. h3
{[%clk 0:00:30.9]} 29... e4 {[%clk 0:01:30.6]} 30. Rc3 {[%clk 0:00:29.6]} 30...
exf3 {[%clk 0:01:28.8]} 31. Rxf3 {[%clk 0:00:29.4]} 31... Re6 {[%clk 0:01:27.3]}
32. Ne7 {[%clk 0:00:27.3]} 32... Nc4 {[%clk 0:01:20]} 33. Nf5 {[%clk 0:00:25.6]}
33... Rae8 {[%clk 0:01:15.7]} 34. Kg1 {[%clk 0:00:25]} 34... Re1+ {[%clk
0:01:14.9]} 35. Rxe1 {[%clk 0:00:25]} 35... Rxe1+ {[%clk 0:01:15.8]} 36. Kf2
{[%clk 0:00:24.3]} 36... Ra1 {[%clk 0:01:13.9]} 37. Nh6+ {[%clk 0:00:13.3]}
37... Ke6 {[%clk 0:01:13.5]} 38. Rc3 {[%clk 0:00:08.1]} 38... Ra2+ {[%clk
0:01:12.5]} 39. Kf3 {[%clk 0:00:07.9]} 39... Nde5+ {[%clk 0:01:08.3]} 40. Ke4
{[%clk 0:00:08]} 40... Rxa4 {[%clk 0:01:01.8]} 41. Nf5 {[%clk 0:00:07.6]} 41...
Nxd6+ {[%clk 0:00:57.9]} 0-1

[Event "Early-Titled-Tuesday-Blitz-January-30-2024"]
[Site "Chess.com"]
[Date "2024.01.30"]
[Round "4"]
[White "GaiozNigalidze"]
[Black "Noki102"]
[Result "1-0"]
[WhiteElo "2705"]
[BlackElo "2484"]
[TimeControl "180+1"]
[EndTime "8:40:28 PST"]
[Termination "GaiozNigalidze won by resignation"]

1. d4 {[%clk 0:03:00.9]} 1... d5 {[%clk 0:02:59.9]} 2. c4 {[%clk 0:03:01.2]}
2... e6 {[%clk 0:02:59.6]} 3. Nf3 {[%clk 0:03:01.2]} 3... Nf6 {[%clk 0:02:59.6]}
4. Nc3 {[%clk 0:03:01.4]} 4... Bb4 {[%clk 0:02:59]} 5. cxd5 {[%clk 0:03:01.2]}
5... exd5 {[%clk 0:02:57.9]} 6. Bg5 {[%clk 0:03:01.4]} 6... O-O {[%clk
0:02:56.5]} 7. e3 {[%clk 0:03:01.5]} 7... h6 {[%clk 0:02:56.5]} 8. Bh4 {[%clk
0:03:01.5]} 8... Be6 {[%clk 0:02:53.9]} 9. Bd3 {[%clk 0:02:59.9]} 9... Nbd7
{[%clk 0:02:54.1]} 10. O-O {[%clk 0:02:52.8]} 10... c6 {[%clk 0:02:53.1]} 11.
Qb3 {[%clk 0:02:51]} 11... Qb6 {[%clk 0:02:43.2]} 12. Na4 {[%clk 0:02:36.8]}
12... Qa5 {[%clk 0:02:41.8]} 13. Rac1 {[%clk 0:02:35.1]} 13... b5 {[%clk
0:02:19.1]} 14. Nc3 {[%clk 0:02:02.9]} 14... c5 {[%clk 0:01:57.4]} 15. Bxb5
{[%clk 0:01:41.9]} 15... c4 {[%clk 0:01:51.9]} 16. Qa4 {[%clk 0:01:38.5]} 16...
Nb6 {[%clk 0:01:14.1]} 17. Qxa5 {[%clk 0:01:33.3]} 17... Bxa5 {[%clk 0:01:15]}
18. Ne5 {[%clk 0:00:55.1]} 18... a6 {[%clk 0:00:59.9]} 19. Bc6 {[%clk 0:00:55]}
19... Rab8 {[%clk 0:01:00.3]} 20. b3 {[%clk 0:00:47.2]} 20... Bxc3 {[%clk
0:00:48.6]} 21. Rxc3 {[%clk 0:00:44.2]} 21... Ne4 {[%clk 0:00:49.1]} 22. Rcc1
{[%clk 0:00:43.9]} 22... f6 {[%clk 0:00:48.3]} 23. Ng6 {[%clk 0:00:36.2]} 23...
Rf7 {[%clk 0:00:30.9]} 24. bxc4 {[%clk 0:00:33.5]} 24... Bf5 {[%clk 0:00:03.7]}
25. c5 {[%clk 0:00:27.5]} 25... Nc4 {[%clk 0:00:02.9]} 26. Bxd5 {[%clk
0:00:24.4]} 26... Bxg6 {[%clk 0:00:02]} 27. Bxc4 {[%clk 0:00:23.3]} 1-0

[Event "Early-Titled-Tuesday-Blitz-January-30-2024"]
[Site "Chess.com"]
[Date "2024.01.30"]
[Round "4"]
[White "GAusal"]
[Black "AttilaTurzo"]
[Result "1/2-1/2"]
[WhiteElo "2275"]
[BlackElo "2500"]
[TimeControl "180+1"]
[EndTime "8:40:28 PST"]
[Termination "Game drawn by repetition"]

1. e4 {[%clk 0:03:00.9]} 1... c5 {[%clk 0:02:18.2]} 2. Nf3 {[%clk 0:02:56.3]}
2... Nc6 {[%clk 0:02:10.1]} 3. d4 {[%clk 0:02:52.9]} 3... cxd4 {[%clk 0:02:11]}
4. Nxd4 {[%clk 0:02:51.1]} 4... Nf6 {[%clk 0:02:11.7]} 5. Nc3 {[%clk 0:02:46.5]}
5... d6 {[%clk 0:02:12]} 6. Be3 {[%clk 0:02:41.3]} 6... Ng4 {[%clk 0:02:11.4]}
7. Bg5 {[%clk 0:02:37.6]} 7... h6 {[%clk 0:02:11.8]} 8. Nxc6 {[%clk 0:02:34.2]}
8... bxc6 {[%clk 0:02:10.8]} 9. Bd2 {[%clk 0:02:31.4]} 9... e5 {[%clk
0:02:09.5]} 10. Bc4 {[%clk 0:02:24.9]} 10... Be7 {[%clk 0:02:03.6]} 11. h3
{[%clk 0:02:23.6]} 11... Nf6 {[%clk 0:02:02.5]} 12. Qe2 {[%clk 0:02:19.3]} 12...
Qb6 {[%clk 0:01:53]} 13. Bb3 {[%clk 0:02:15.3]} 13... Ba6 {[%clk 0:01:53.2]} 14.
Qf3 {[%clk 0:02:11.7]} 14... Bc8 {[%clk 0:01:38.8]} 15. O-O-O {[%clk 0:02:07.2]}
15... Be6 {[%clk 0:01:37]} 16. Kb1 {[%clk 0:02:02.7]} 16... a5 {[%clk
0:01:35.1]} 17. g4 {[%clk 0:01:59]} 17... Nd7 {[%clk 0:01:24.1]} 18. h4 {[%clk
0:01:54.4]} 18... Nc5 {[%clk 0:01:11.9]} 19. Be3 {[%clk 0:01:50.6]} 19... Qb4
{[%clk 0:01:04.9]} 20. a3 {[%clk 0:01:48.4]} 20... Qb7 {[%clk 0:00:48.6]} 21.
Bxc5 {[%clk 0:01:44.4]} 21... dxc5 {[%clk 0:00:38.9]} 22. Bxe6 {[%clk
0:01:45.3]} 22... fxe6 {[%clk 0:00:39.1]} 23. g5 {[%clk 0:01:40.5]} 23... c4
{[%clk 0:00:34.8]} 24. Qh5+ {[%clk 0:01:37]} 24... Kf8 {[%clk 0:00:30.3]} 25.
Rhf1 {[%clk 0:01:32]} 25... Bxa3 {[%clk 0:00:25.7]} 26. Na4 {[%clk 0:01:27.9]}
26... Bxb2 {[%clk 0:00:23.8]} 27. Nxb2 {[%clk 0:01:22.6]} 27... Rb8 {[%clk
0:00:20.4]} 28. Qf3+ {[%clk 0:01:18.3]} 28... Kg8 {[%clk 0:00:20.3]} 29. Qc3
{[%clk 0:01:13.5]} 29... hxg5 {[%clk 0:00:17.7]} 30. hxg5 {[%clk 0:01:10.2]}
30... Rh3 {[%clk 0:00:17.9]} 31. Rd8+ {[%clk 0:01:03.4]} 31... Rxd8 {[%clk
0:00:14.8]} 32. Qxh3 {[%clk 0:01:02.3]} 32... Qb4 {[%clk 0:00:12.9]} 33. Qxe6+
{[%clk 0:01:01.2]} 33... Kf8 {[%clk 0:00:12.4]} 34. Qxe5 {[%clk 0:00:56.3]}
34... c3 {[%clk 0:00:11.6]} 35. Qf5+ {[%clk 0:00:45.7]} 35... Kg8 {[%clk
0:00:09.7]} 36. Qe6+ {[%clk 0:00:45.5]} 36... Kf8 {[%clk 0:00:09.4]} 37. Qf5+
{[%clk 0:00:45.5]} 37... Kg8 {[%clk 0:00:08.8]} 38. Qe6+ {[%clk 0:00:45.6]}
38... Kf8 {[%clk 0:00:09.1]} 39. Qf5+ {[%clk 0:00:45.4]} 1/2-1/2

[Event "Early-Titled-Tuesday-Blitz-January-30-2024"]
[Site "Chess.com"]
[Date "2024.01.30"]
[Round "4"]
[White "Nouali_Mohamed"]
[Black "chedimir"]
[Result "0-1"]
[WhiteElo "2519"]
[BlackElo "2429"]
[TimeControl "180+1"]
[EndTime "8:40:31 PST"]
[Termination "chedimir won on time"]

1. e4 {[%clk 0:03:00]} 1... c5 {[%clk 0:02:42.2]} 2. Nf3 {[%clk 0:02:59.6]} 2...
e6 {[%clk 0:02:42.2]} 3. d4 {[%clk 0:03:00]} 3... cxd4 {[%clk 0:02:42.2]} 4.
Nxd4 {[%clk 0:03:00.9]} 4... Nf6 {[%clk 0:02:42.3]} 5. Nc3 {[%clk 0:03:00.9]}
5... d6 {[%clk 0:02:42.4]} 6. Bc4 {[%clk 0:03:00.4]} 6... a6 {[%clk 0:02:41.7]}
7. Bb3 {[%clk 0:03:00.7]} 7... b5 {[%clk 0:02:41.4]} 8. Bg5 {[%clk 0:03:00.4]}
8... Nbd7 {[%clk 0:02:38.6]} 9. Bxe6 {[%clk 0:02:45.1]} 9... fxe6 {[%clk
0:02:37.7]} 10. Nxe6 {[%clk 0:02:46]} 10... Qb6 {[%clk 0:02:35.4]} 11. Nd5
{[%clk 0:02:35.2]} 11... Nxd5 {[%clk 0:02:03.6]} 12. exd5 {[%clk 0:02:35]} 12...
Ne5 {[%clk 0:02:02.4]} 13. Bd8 {[%clk 0:02:20.8]} 13... Qb7 {[%clk 0:01:53.5]}
14. Nxf8 {[%clk 0:01:49.3]} 14... Kxd8 {[%clk 0:01:48.2]} 15. Ne6+ {[%clk
0:01:35.8]} 15... Bxe6 {[%clk 0:01:47.2]} 16. dxe6 {[%clk 0:01:36.7]} 16... Ke7
{[%clk 0:01:43.6]} 17. O-O {[%clk 0:01:30.5]} 17... Kxe6 {[%clk 0:01:26.8]} 18.
f4 {[%clk 0:01:29]} 18... Nd7 {[%clk 0:01:20.8]} 19. Qg4+ {[%clk 0:01:02.8]}
19... Kf7 {[%clk 0:01:20.1]} 20. Rae1 {[%clk 0:00:50.6]} 20... Rae8 {[%clk
0:00:59]} 21. Rxe8 {[%clk 0:00:44.7]} 21... Rxe8 {[%clk 0:00:56.6]} 22. Qh5+
{[%clk 0:00:44.1]} 22... Kf8 {[%clk 0:00:56.4]} 23. Qxh7 {[%clk 0:00:43.6]}
23... Nf6 {[%clk 0:00:49.8]} 24. Qh8+ {[%clk 0:00:19.4]} 24... Kf7 {[%clk
0:00:49.3]} 25. Qh3 {[%clk 0:00:20.3]} 25... Re2 {[%clk 0:00:47]} 26. a4 {[%clk
0:00:10]} 26... bxa4 {[%clk 0:00:44]} 27. Rd1 {[%clk 0:00:04.4]} 27... Qe4
{[%clk 0:00:38.7]} 28. Qg3 {[%clk 0:00:01.1]} 28... d5 {[%clk 0:00:35.6]} 0-1